bitfinex/quotes_ETHUSD_20250424
["timestamp","ask_amount","ask_price","bid_price","bid_amount"]
[1745522317094,0.29635331,1758.9,1758.7,6.83012683]
[1745522317504,0.31790668,1759.1,1758.7,6.83012683]
[1745522317820,0.31790668,1759.0,1758.8,0.68301268]
[1745522319407,0.31790668,1759.0,1758.9,6.53211906]
[1745522319742,0.31790668,1759.0,1758.9,6.47527153]
[1745522320519,0.31790668,1759.3,1758.9,6.47527153]
[1745522320839,0.31790668,1759.3,1759.0,4.904]
[1745522321043,0.31790668,1759.3,1759.1,0.4904]
[1745522321239,0.31790668,1759.3,1759.2,0.8259]
[1745522322511,0.29630849,1759.4,1759.2,0.8259]
[1745522322720,0.29649428,1759.5,1759.2,0.8259]
[1745522322937,4.0804747,1759.7,1759.2,0.8259]
[1745522323125,4.0804747,1759.7,1759.2,1.52598138]
[1745522323326,0.31849157,1759.6,1759.2,1.52598138]
[1745522324446,0.31849157,1759.5,1759.2,1.52598138]
[1745522325313,0.31849157,1759.6,1759.2,1.52598138]
[1745522325551,1.08146337,1759.4,1759.0,4.903]
[1745522325751,6.76524125,1759.4,1759.0,4.903]
[1745522326230,0.31849157,1759.3,1759.0,4.903]
[1745522326652,3.31849157,1759.3,1759.0,4.903]
[1745522327152,0.7851,1759.2,1759.0,4.903]
[1745522327350,1.10359157,1759.2,1759.0,4.903]
[1745522327659,8.28003971,1759.2,1759.0,4.903]
[1745522327977,0.31849157,1759.1,1759.0,4.903]
[1745522329761,1.10359157,1759.2,1759.0,4.903]
[1745522330765,0.31849157,1759.2,1759.0,4.903]
[1745522334844,0.31849157,1759.2,1759.1,0.8266]
[1745522335165,0.31849157,1759.2,1759.1,1.39956]
[1745522335749,0.31849157,1759.2,1759.1,0.8266]
[1745522335947,8.68344767,1759.5,1759.1,0.8266]
[1745522335948,0.31849157,1759.4,1759.1,0.8266]
[1745522336165,0.814,1759.3,1759.0,4.903]
[1745522336540,1.13249157,1759.4,1759.0,4.903]
[1745522336875,0.31849157,1759.3,1759.0,4.903]
[1745522338476,0.61499622,1759.3,1759.0,4.903]
[1745522339371,1.3262909,1759.3,1759.0,4.903]
[1745522339537,0.31849157,1759.2,1759.0,4.903]
[1745522341778,0.31849157,1759.1,1759.0,4.903]
[1745522342277,0.31849157,1759.2,1759.0,4.903]
[1745522343179,0.31849157,1759.1,1759.0,4.903]
[1745522343479,0.31849157,1759.1,1759.0,5.46869]
[1745522345684,0.31849157,1759.1,1759.0,6.27149]
[1745522346088,0.61481938,1759.2,1759.0,6.27149]
[1745522346382,0.61481938,1759.2,1759.0,5.7058]
[1745522346580,0.31849157,1759.1,1759.0,5.7058]
[1745522347475,0.31849157,1759.1,1759.0,4.903]
[1745522351470,1.11279157,1759.1,1759.0,4.903]
[1745522352500,0.31849157,1759.1,1759.0,4.903]
[1745522354683,0.31849157,1759.1,1759.0,5.6785]
[1745522354855,0.31849157,1759.1,1759.0,6.82055088]
[1745522356382,0.31849157,1759.1,1759.0,12.56244333]
[1745522356718,0.31849157,1759.1,1759.0,12.5055992]
[1745522357021,0.29632781,1759.2,1759.0,12.5055992]
[1745522357225,0.29632781,1759.2,1759.0,6.82055088]
[1745522357421,0.29632781,1759.2,1759.1,0.68205509]
[1745522357909,0.29632781,1759.2,1759.0,4.903]
[1745522357910,0.61498292,1759.2,1759.0,4.903]
[1745522358496,0.31869003,1759.1,1759.0,4.903]
[1745522362181,0.31869003,1759.1,1759.0,5.6654]
[1745522365321,0.29632781,1759.2,1759.0,5.6654]
[1745522367520,0.29632781,1759.2,1759.0,11.35042241]
[1745522367724,0.29632781,1759.2,1759.1,1.13504224]
[1745522368221,0.61515069,1759.2,1759.1,1.13504224]
[1745522368924,0.61515069,1759.2,1759.1,7.58516738]
[1745522369420,0.29632781,1759.2,1759.1,1.90044224]
[1745522370823,0.29632781,1759.2,1759.1,7.58516738]
[1745522371233,0.31872545,1759.5,1759.2,5.68437947]
[1745522371427,0.29627378,1759.4,1759.2,7.01133416]
[1745522371804,0.29627378,1759.4,1759.2,1.32695469]
[1745522372129,0.29627378,1759.4,1759.3,5.68407889]
[1745522372429,0.29624227,1759.7,1759.4,0.7651]
[1745522372594,0.29624227,1759.7,1759.5,4.899]
[1745522373114,0.31871543,1759.6,1759.5,4.899]
[1745522374803,1.07641543,1759.6,1759.5,4.899]
[1745522376329,0.31871543,1759.6,1759.5,4.899]
[1745522376529,0.31871543,1759.6,1759.5,11.85693279]
[1745522376831,1.08146337,1760.1,1759.5,11.85693279]
[1745522377006,0.29616546,1760.0,1759.6,5.68295999]
[1745522377694,1.05386546,1760.0,1759.5,11.85671444]
[1745522377893,1.37258089,1760.0,1759.5,11.85671444]
[1745522378099,1.37258089,1760.0,1759.6,6.86868698]
[1745522378705,1.37258089,1760.0,1759.6,1.18567144]
[1745522378905,1.37258089,1760.0,1759.6,6.86873114]
[1745522379443,1.37258089,1760.0,1759.6,1.18567144]
[1745522380840,1.05386546,1760.0,1759.6,1.18567144]
[1745522382232,1.05386546,1760.0,1759.6,6.8687482]
[1745522382436,0.29616546,1760.0,1759.9,6.43714103]
[1745522382642,0.31790807,1760.1,1760.0,6.43681818]
[1745522382841,0.31790807,1760.6,1760.3,5.680592]
[1745522383044,0.31790807,1760.6,1760.4,4.898]
[1745522383353,0.31790807,1760.6,1760.5,6.76166785]
[1745522383651,0.31790807,1760.6,1760.5,8.5013532]
[1745522383836,1.0981439,1761.0,1760.6,5.6798689]
[1745522384153,0.2963439,1761.0,1760.6,5.6798689]
[1745522385542,0.2963439,1761.0,1760.5,9.25619143]
[1745522385746,0.2963439,1761.0,1760.5,8.17488164]
[1745522385968,0.2963439,1761.0,1760.6,0.81748816]
[1745522386754,0.2963439,1761.0,1760.7,5.67953039]
[1745522386937,0.2963439,1761.0,1760.8,4.897]
[1745522391072,8.6794076,1760.8,1760.7,4.896]
[1745522391266,5.6794076,1760.8,1760.6,4.896]
[1745522391572,10.55460841,1760.9,1760.6,4.896]
[1745522391883,5.67937863,1760.8,1760.6,4.896]
[1745522393736,0.7565,1760.7,1760.0,0.8246]
[1745522393941,0.7565,1760.7,1760.2,5.68105217]
[1745522394153,0.7565,1760.7,1760.1,10.57735267]
[1745522394364,0.7565,1760.7,1760.1,10.63407198]
[1745522394679,0.7565,1760.7,1760.2,1.0634072]
[1745522396372,0.7565,1760.7,1760.3,4.894]
[1745522396373,0.7745,1760.5,1760.3,4.894]
[1745522401806,6.45487252,1760.5,1760.3,4.894]
[1745522402477,0.7745,1760.5,1760.3,4.894]
[1745522402877,6.45494813,1760.5,1760.3,4.894]
[1745522403263,6.76199052,1760.4,1760.3,4.894]
[1745522403588,5.68158244,1760.1,1759.9,4.894]
[1745522403896,3.7513,1760.3,1759.9,4.894]
[1745522404081,3.7513,1760.3,1759.9,5.6855]
[1745522404498,9.43217429,1760.3,1759.9,5.6855]
[1745522406119,3.7513,1760.3,1759.9,5.6855]
[1745522406825,9.43224993,1760.3,1759.9,5.6855]
[1745522407026,9.74972581,1760.3,1759.9,5.6855]
[1745522407521,4.06877588,1760.3,1759.9,5.6855]
[1745522407721,4.06877588,1760.3,1759.9,6.25405]
[1745522409712,0.31747588,1760.3,1759.9,11.93588325]
[1745522409919,0.31747588,1760.3,1759.9,17.61783164]
[1745522410097,0.31747588,1760.3,1760.1,0.7878]
[1745522410423,0.29642134,1760.4,1760.1,0.7878]
[1745522411036,0.29642134,1760.4,1760.0,0.7878]
[1745522411197,5.9769585,1760.4,1760.0,0.7878]
[1745522411397,0.29642134,1760.4,1760.0,0.7878]
[1745522411730,0.29642134,1760.4,1760.0,1.412835]
[1745522412059,6.29448806,1760.4,1760.0,1.412835]
[1745522412258,0.61389722,1760.4,1760.0,1.412835]
[1745522412424,6.29445456,1760.4,1760.0,1.412835]
[1745522412760,0.61389722,1760.4,1760.0,1.412835]
[1745522413558,6.29452456,1760.4,1760.0,1.412835]
[1745522413856,6.29452456,1760.4,1759.9,6.25035]
[1745522414557,5.99841306,1760.3,1759.9,5.6818]
[1745522414721,0.7517,1760.2,1759.9,5.6818]
[1745522415443,4.06917588,1760.3,1759.9,5.6818]
[1745522415845,0.61389722,1760.4,1760.0,5.73862125]
[1745522416065,0.61389722,1760.4,1760.0,5.73861321]
[1745522416224,0.61389722,1760.4,1760.1,0.7878]
[1745522418332,0.61389722,1760.4,1760.3,6.44914985]
[1745522419560,0.61383279,1760.7,1760.3,5.6633]
[1745522419765,0.31747588,1760.6,1760.3,5.6633]
[1745522419960,0.31747588,1760.6,1760.3,6.79772592]
[1745522420573,0.31747588,1760.6,1760.4,0.7683]
[1745522420974,0.31747588,1760.5,1760.4,0.7683]
[1745522421668,0.31747588,1760.6,1760.3,4.895]
[1745522422435,0.31747588,1760.5,1760.4,6.45772715]
[1745522423474,0.31747588,1760.5,1760.4,0.7772]
[1745522423686,0.31747588,1760.7,1760.4,0.7772]
[1745522424587,0.31747588,1760.7,1760.5,6.50275715]
[1745522424988,0.31747588,1760.7,1760.5,6.5595509]
[1745522425191,0.31747588,1760.7,1760.6,0.65595509]
[1745522425377,0.61355258,1760.8,1760.5,6.50272979]
[1745522426290,0.61355258,1760.8,1760.5,0.8226]
[1745522429522,1.42715258,1760.8,1760.4,0.7787]
[1745522430180,1.42752102,1760.8,1760.4,0.7787]
[1745522431903,0.31784432,1760.8,1760.4,0.83549757]
[1745522432107,0.31784432,1760.8,1760.4,8.16818314]
[1745522432427,0.31784432,1760.8,1760.4,13.84847958]
[1745522432621,0.31784432,1760.8,1760.4,8.1681743]
[1745522433125,0.31784432,1760.8,1760.6,0.7857]
[1745522433327,3.61415786,1760.9,1760.7,4.892]
[1745522433883,9.73322077,1760.9,1760.7,4.892]
[1745522434304,0.31784432,1760.8,1760.7,4.892]
[1745522435875,1.07804432,1760.8,1760.7,4.892]
[1745522436566,1.07804432,1760.8,1760.3,4.892]
[1745522436567,2.15950769,1760.8,1760.3,4.892]
[1745522436779,1.08146337,1760.6,1760.3,4.892]
[1745522437086,1.08146337,1760.4,1759.9,0.8211]
[1745522437272,1.08146337,1760.4,1760.1,4.892]
[1745522438076,1.39930769,1760.4,1760.1,4.892]
[1745522438783,0.31784432,1760.3,1760.1,4.892]
[1745522439282,0.31784432,1760.3,1760.2,0.4892]
[1745522439491,0.31784432,1760.3,1760.2,1.267]
[1745522439788,0.31784432,1760.4,1760.2,1.267]
[1745522440381,0.61423456,1760.5,1760.2,1.267]
[1745522440683,0.61423456,1760.5,1760.2,0.7778]
[1745522441885,0.31784432,1760.4,1760.2,0.7778]
[1745522443579,0.31784432,1760.4,1760.2,6.51575971]
[1745522443745,0.31784432,1760.4,1760.2,0.7778]
[1745522444278,0.91035173,1760.5,1760.2,0.7778]
[1745522444459,0.91035173,1760.5,1760.2,7.59404841]
[1745522444644,0.91035173,1760.5,1760.2,1.91291324]
[1745522445681,0.91035173,1760.5,1760.2,7.59401022]
[1745522445986,0.91035173,1760.5,1760.2,1.91291324]
[1745522446174,0.61396149,1760.5,1760.3,6.43610712]
[1745522446352,0.61396149,1760.5,1760.4,0.7004105]
[1745522446548,0.29611717,1760.5,1760.4,0.70041034]
[1745522446766,0.29611717,1760.5,1760.4,0.70041001]
[1745522449193,0.29611717,1760.5,1760.4,0.64361071]
[1745522449675,0.29611717,1760.5,1760.4,6.32413786]
[1745522450687,0.29611717,1760.5,1760.4,0.64361071]
[1745522451290,0.29611717,1760.5,1760.4,6.32413786]
[1745522451503,0.29611717,1760.5,1760.4,7.18643272]
[1745522451802,0.31838895,1760.6,1760.5,6.48570448]
[1745522451965,0.29600278,1760.9,1760.6,5.67966354]
[1745522452174,0.29600278,1760.9,1760.7,5.73623365]
[1745522452994,0.31838895,1761.1,1760.8,6.48653671]
[1745522453175,0.61436277,1761.1,1760.9,4.892]
[1745522453388,0.61436277,1761.1,1760.9,4.94878258]
[1745522453587,0.29597382,1761.1,1760.9,6.09231451]
[1745522455202,0.29597382,1761.1,1760.9,11.77109577]
[1745522455363,0.29597382,1761.1,1760.9,11.71431319]
[1745522456209,0.29597382,1761.1,1760.9,11.71427045]
[1745522456567,0.29597382,1761.1,1760.9,17.39298875]
[1745522456768,0.29597382,1761.1,1761.0,1.73929888]
[1745522457268,0.29597382,1761.1,1761.0,7.41789058]
[1745522457808,0.29597382,1761.1,1761.0,8.17999058]
[1745522458498,0.29597382,1761.1,1761.0,2.50139888]
[1745522458705,0.29597382,1761.1,1760.9,4.892]
[1745522460768,0.29597382,1761.1,1760.9,10.62747388]
[1745522461100,0.29597382,1761.1,1761.0,5.6785917]
[1745522461399,0.29597382,1761.1,1760.9,11.32699392]
[1745522461571,0.29597382,1761.1,1761.0,5.6785917]
[1745522461773,5.18485232,1761.5,1761.0,7.37915026]
[1745522461968,0.29594427,1761.3,1761.0,7.37915026]
[1745522462300,0.29594427,1761.3,1761.0,7.43592676]
[1745522462674,0.29594427,1761.3,1761.2,6.43694685]
[1745522462885,0.31838895,1761.6,1761.4,5.67715475]
[1745522463101,0.31838895,1761.6,1761.5,11.94945609]
[1745522463299,0.29587599,1761.7,1761.6,5.67665758]
[1745522463904,0.29587599,1761.7,1761.6,6.43565758]
[1745522464304,0.29620558,1762.1,1761.9,6.46705585]
[1745522464505,0.59201588,1762.1,1762.0,4.889]
[1745522465574,0.59201588,1762.1,1762.0,11.69997778]
[1745522466224,0.2958103,1762.1,1762.0,12.49717778]
[1745522466514,0.29615432,1762.5,1762.3,5.67428648]
[1745522466711,0.59185867,1762.5,1762.4,4.888]
[1745522468435,0.59185867,1762.5,1762.4,5.3768]
[1745522468596,0.59185867,1762.5,1762.4,11.05088079]
[1745522468791,0.59185867,1762.5,1762.4,5.3768]
[1745522473396,0.29570435,1762.5,1762.4,11.05088079]
[1745522473597,0.29570435,1762.5,1762.4,5.3768]
[1745522475644,0.29570435,1762.5,1762.2,4.886]
[1745522477839,0.7659,1762.4,1762.2,4.886]
[1745522479399,1.09470435,1762.5,1762.2,4.886]
[1745522479810,1.09470435,1762.5,1762.2,10.61740208]
[1745522480013,1.09470435,1762.5,1762.2,5.6663]
[1745522480207,1.09470435,1762.5,1762.2,7.36790828]
[1745522480448,0.29570435,1762.5,1762.2,18.71702831]
[1745522480961,0.29570435,1762.5,1762.2,13.04241805]
[1745522481150,0.29570435,1762.5,1762.4,5.67408079]
[1745522481317,0.29570435,1762.5,1762.4,6.45438079]
[1745522481517,0.29570435,1762.5,1762.4,1.99316372]
[1745522482456,0.29570435,1762.5,1762.4,7.66724451]
[1745522482653,0.29570435,1762.5,1762.4,1.99316372]
[1745522482829,0.29570435,1762.5,1762.2,7.34110828]
[1745522483520,0.29570435,1762.5,1762.2,13.01573425]
[1745522483947,0.29570435,1762.5,1762.2,6.58760828]
[1745522484251,0.29570435,1762.5,1762.2,4.886]
[1745522486411,0.29570435,1762.5,1762.2,4.94273963]
[1745522486945,0.29570435,1762.5,1762.2,10.61743313]
[1745522487393,0.29570435,1762.5,1762.3,5.67438038]
[1745522487693,0.29570435,1762.5,1762.3,6.45700571]
[1745522487991,0.29570435,1762.5,1762.4,0.64570057]
[1745522488479,0.29570435,1762.5,1762.3,0.7828]
[1745522489661,0.29570435,1762.5,1762.3,6.45717713]
[1745522490196,0.29570435,1762.5,1762.3,12.13124506]
[1745522490488,0.29570435,1762.5,1762.4,5.73081005]
[1745522490858,0.29570435,1762.5,1762.4,6.81227342]
[1745522491078,0.191646,1762.6,1762.5,5.67375886]
[1745522491510,0.191646,1762.6,1762.5,6.47165886]
[1745522492482,0.191646,1762.6,1762.5,6.52838386]
[1745522492882,0.191646,1762.6,1762.5,9.52838386]
[1745522493608,0.191646,1762.6,1762.5,9.47165886]
[1745522493805,0.191646,1762.6,1762.5,11.22707182]
[1745522497591,0.191646,1762.6,1762.5,11.28379058]
[1745522497925,0.191646,1762.6,1762.5,7.48589058]
[1745522498133,0.191646,1762.6,1762.4,4.884]
[1745522498289,0.821,1762.5,1762.4,4.884]
[1745522498886,0.821,1762.5,1762.2,4.883]
[1745522498887,0.7993,1762.4,1762.2,4.883]
[1745522499534,0.31776937,1762.3,1762.2,4.883]
[1745522501095,0.7993,1762.4,1762.2,4.883]
[1745522502224,1.11706937,1762.4,1762.2,4.883]
[1745522502749,0.7993,1762.4,1762.2,4.883]
[1745522504745,1.11706937,1762.4,1762.2,4.883]
[1745522504944,5.67482993,1762.2,1761.9,21.908]
[1745522505151,0.7561,1762.1,1761.9,21.908]
[1745522506171,10.51293226,1762.0,1761.9,4.884]
[1745522506512,10.83070163,1762.0,1761.9,4.884]
[1745522507249,5.67613852,1761.8,1761.2,23.4811233]
[1745522507451,0.7561,1761.7,1761.3,4.884]
[1745522508311,0.61394796,1761.9,1761.5,5.67688597]
[1745522508511,0.29617859,1761.9,1761.5,5.67677079]
[1745522508764,0.29617859,1761.9,1761.4,10.56221127]
[1745522508915,0.29617859,1761.9,1761.4,12.29432681]
[1745522509357,0.7789,1761.8,1761.4,6.61711554]
[1745522509876,0.29617859,1761.9,1761.4,12.294334]
[1745522510170,0.29617859,1761.9,1761.4,12.2942044]
[1745522510374,0.29617859,1761.9,1761.4,12.29418808]
[1745522510669,0.29617859,1761.9,1761.6,5.67660594]
[1745522510966,0.29617859,1761.9,1761.5,6.90619399]
[1745522511143,0.29617859,1761.9,1761.4,10.56225527]
[1745522511348,5.97187528,1761.9,1761.4,4.885]
[1745522511548,0.8025,1761.8,1761.4,4.885]
[1745522511946,0.8025,1761.8,1761.5,5.67682274]
[1745522512458,0.8025,1761.8,1761.4,10.56217976]
[1745522512757,0.29617859,1761.9,1761.5,6.46717211]
[1745522513133,0.29617859,1761.9,1761.5,5.67687211]
[1745522513334,0.29587888,1761.8,1761.5,5.67687211]
[1745522513662,0.29587888,1761.8,1761.4,12.29418259]
[1745522514067,0.29587888,1761.8,1761.6,5.6766203]
[1745522514570,0.29587888,1761.8,1761.6,5.67661118]
[1745522514866,0.29587888,1761.8,1761.6,1.13533634]
[1745522515550,0.29587888,1761.8,1761.7,6.75779872]
[1745522515861,0.29614762,1762.2,1761.9,5.67565156]
[1745522516069,0.29581741,1762.0,1761.9,5.67565156]
[1745522516360,0.29581741,1762.0,1761.9,10.56065156]
[1745522516561,0.29581741,1762.0,1761.9,12.24105178]
[1745522516727,0.29581741,1762.0,1761.9,12.18430351]
[1745522517339,0.29581741,1762.0,1761.9,12.99060351]
[1745522517550,0.29581741,1762.0,1761.9,14.07206688]
[1745522517764,1.28201347,1762.6,1762.2,5.67471552]
[1745522518059,0.29609268,1762.5,1762.3,4.884]
[1745522518263,0.59185401,1762.5,1762.3,4.884]
[1745522521479,0.8278,1762.4,1762.3,4.884]
[1745522527191,1.14477398,1762.4,1762.3,4.884]
[1745522528009,0.8278,1762.4,1762.3,4.884]
[1745522529268,1.14477398,1762.4,1762.3,4.884]
[1745522529669,0.31697398,1762.4,1762.3,4.884]
[1745522529982,0.31697398,1762.4,1762.3,11.04680276]
[1745522530388,0.29576133,1762.5,1762.4,5.67408079]
[1745522530706,0.29576133,1762.5,1762.4,6.44678079]
[1745522530903,0.29576133,1762.5,1762.4,6.50351315]
[1745522531704,0.29576133,1762.5,1762.4,6.44678079]
[1745522531909,0.29576133,1762.5,1762.4,2.52205836]
[1745522532285,0.29576133,1762.5,1762.4,8.19613915]
[1745522536174,0.29576133,1762.5,1762.4,2.52205836]
[1745522536374,0.29576133,1762.5,1762.4,8.19613915]
[1745522536919,0.29576133,1762.5,1762.4,1.74935836]
[1745522537985,0.29576133,1762.5,1762.3,4.884]
[1745522537986,1.11236133,1762.5,1762.3,4.884]
[1745522538387,1.42933531,1762.5,1762.3,4.884]
[1745522539213,1.11236133,1762.5,1762.3,4.884]
[1745522541010,1.42933531,1762.5,1762.3,4.884]
[1745522543374,0.61273531,1762.5,1762.4,5.67408079]
[1745522543596,0.61273531,1762.5,1762.4,7.37250495]
[1745522544014,0.61273531,1762.5,1762.4,1.69842416]
[1745522544223,0.29576133,1762.5,1762.4,1.69842416]
[1745522545248,0.29576133,1762.5,1762.4,7.37250495]
[1745522545409,0.29576133,1762.5,1762.4,1.69842416]
[1745522547914,0.29576133,1762.5,1762.3,5.6359]
[1745522548119,0.29576133,1762.5,1762.3,4.884]
[1745522548120,1.09876133,1762.5,1762.3,4.884]
[1745522548716,1.39486431,1762.5,1762.3,4.884]
[1745522548950,8.15028618,1762.5,1762.3,4.884]
[1745522549308,0.31811406,1762.4,1762.0,4.882]
[1745522549535,0.7623,1762.3,1762.0,4.882]
[1745522550054,0.29582939,1762.2,1762.0,4.882]
[1745522550412,0.61394345,1762.2,1762.0,4.882]
[1745522553124,0.61394345,1762.2,1762.0,16.23246381]
[1745522553326,0.61394345,1762.2,1762.0,10.55717849]
[1745522553567,0.61394345,1762.2,1762.0,10.55716674]
[1745522553730,0.61394345,1762.2,1762.0,16.23230395]
[1745522553934,0.61394345,1762.2,1762.0,10.55713721]
[1745522554256,0.61394345,1762.2,1762.0,16.23229967]
[1745522554417,0.61394345,1762.2,1762.1,5.67504681]
[1745522555437,0.29582939,1762.2,1762.1,5.67504681]
[1745522559766,0.31811406,1762.3,1762.2,5.67472477]
[1745522559954,0.29573267,1762.5,1762.4,5.67408079]
[1745522560132,0.29573267,1762.5,1762.4,11.37418079]
[1745522564723,0.29573267,1762.5,1762.4,10.55708079]
[1745522565162,0.29573267,1762.5,1762.4,4.883]
[1745522565625,0.29573267,1762.5,1762.4,10.55708079]
[1745522567256,0.29573267,1762.5,1762.4,4.883]
[1745522567674,0.29573267,1762.5,1762.4,10.55708079]
[1745522572863,0.29573267,1762.5,1762.4,4.883]
[1745522573572,0.29573267,1762.5,1762.4,10.55708079]
[1745522575066,0.29573267,1762.5,1762.4,4.883]
[1745522578180,0.29573267,1762.5,1762.4,10.55708079]
[1745522580171,0.29573267,1762.5,1762.4,12.18020664]
[1745522580862,0.29573267,1762.5,1762.4,12.99590664]
[1745522586357,0.191646,1762.6,1762.5,10.51882223]
[1745522586554,0.191646,1762.6,1762.5,12.78872512]
[1745522590770,0.191646,1762.6,1762.5,9.78872512]
[1745522590983,0.191646,1762.6,1762.5,8.70726175]
[1745522591900,0.191646,1762.6,1762.5,7.94366175]
[1745522592105,0.191646,1762.6,1762.5,10.55375886]
[1745522593605,0.191646,1762.6,1762.5,10.61048725]
[1745522593959,0.191646,1762.6,1762.5,10.55375886]
[1745522594672,0.191646,1762.6,1762.5,10.61048728]
[1745522596597,0.191646,1762.6,1762.5,10.55375886]
[1745522598706,0.191646,1762.6,1762.5,12.33885541]
[1745522599970,0.191646,1762.6,1762.5,4.88]
[1745522600177,0.191646,1762.6,1762.5,10.55375886]
[1745522600387,0.191646,1762.6,1762.5,10.6104907]
[1745522600796,0.191646,1762.6,1762.5,10.55375886]
[1745522601303,0.191646,1762.6,1762.5,4.88]
[1745522601610,0.997146,1762.6,1762.5,4.88]
[1745522602670,1.31526006,1762.6,1762.5,4.88]
[1745522602907,1.72996543,1762.6,1762.5,4.88]
[1745522603704,1.41185137,1762.6,1762.5,4.88]
[1745522604277,0.8055,1762.5,1762.2,4.88]
[1745522605280,0.31811406,1762.4,1762.2,4.88]
[1745522606513,1.12361406,1762.5,1762.2,4.88]
[1745522607017,0.29579807,1762.4,1762.2,4.88]
[1745522607233,0.7999,1762.3,1762.2,4.88]
[1745522607514,1.20946981,1762.3,1762.2,4.88]
[1745522608019,0.7999,1762.2,1761.9,4.88]
[1745522609514,0.7999,1762.2,1761.9,10.5556732]
[1745522610217,0.7999,1762.2,1761.9,4.88]
[1745522610386,0.7999,1762.2,1761.9,10.55537716]
[1745522610588,0.7999,1762.2,1761.9,12.17850563]
[1745522610827,0.7999,1762.2,1761.9,17.85397222]
[1745522611033,0.7999,1762.2,1761.9,12.17850563]
[1745522612050,0.7999,1762.2,1761.9,6.50312847]
[1745522612199,0.61391213,1762.4,1762.3,5.67440276]
[1745522612396,0.29579807,1762.4,1762.3,11.69160342]
[1745522612631,0.191646,1762.6,1762.5,6.46945886]
[1745522612806,0.191646,1762.6,1762.5,6.52618884]
[1745522613508,0.191646,1762.6,1762.5,6.46945886]
[1745522614337,0.191646,1762.6,1762.5,7.68379846]
[1745522619651,0.191646,1762.6,1762.5,7.74052737]
[1745522619949,0.191646,1762.6,1762.5,8.82199074]
[1745522620737,0.191646,1762.6,1762.5,8.76526183]
[1745522626146,0.191646,1762.6,1762.5,6.88809846]
[1745522626346,0.191646,1762.6,1762.5,10.55175886]
[1745522631763,0.191646,1762.6,1762.5,4.878]
[1745522633853,0.191646,1762.6,1762.5,10.55175886]
[1745522635474,0.191646,1762.6,1762.5,11.37418484]
[1745522635645,1e-08,1762.6,1762.5,15.39892223]
[1745522635979,1e-08,1762.6,1762.5,17.10027787]
[1745522636340,1e-08,1762.6,1762.5,18.18174124]
[1745522636543,1e-08,1762.6,1762.5,17.10027787]
[1745522638742,1e-08,1762.6,1762.5,18.18174124]
[1745522638945,1e-08,1762.6,1762.5,17.10027787]
[1745522639376,1e-08,1762.6,1762.5,18.18174124]
[1745522642164,1e-08,1762.6,1762.5,13.30374124]
[1745522642481,1e-08,1762.6,1762.5,18.17974124]
[1745522644572,1e-08,1762.6,1762.5,15.17974124]
[1745522644768,1e-08,1762.6,1762.5,14.41404124]
[1745522646867,1e-08,1762.6,1762.5,15.17784124]
[1745522647972,1e-08,1762.6,1762.5,19.25930461]
[1745522648973,1e-08,1762.6,1762.5,14.09637787]
[1745522649298,1e-08,1762.6,1762.5,15.17784124]
[1745522649512,1e-08,1762.6,1762.5,14.41404124]
[1745522652979,1e-08,1762.6,1762.5,13.33257787]
[1745522655408,0.7911,1762.5,1762.4,5.67386918]
[1745522655714,0.7911,1762.5,1762.4,10.54986918]
[1745522655915,1e-08,1762.6,1762.4,10.54986918]
[1745522656216,1e-08,1762.6,1762.5,5.67375886]
[1745522656417,0.29571312,1762.6,1762.5,5.67375886]
[1745522658923,0.7852,1762.5,1762.4,4.876]
[1745522660096,0.7852,1762.5,1762.4,10.55008079]
[1745522660628,0.7852,1762.5,1762.4,4.876]
[1745522662300,0.7852,1762.5,1762.4,10.55008079]
[1745522662839,0.29571312,1762.6,1762.5,5.67375886]
[1745522663515,0.29571312,1762.6,1762.5,8.3776062]
[1745522664840,0.29571312,1762.6,1762.5,9.1995062]
[1745522665054,1e-08,1762.6,1762.5,13.28096957]
[1745522665347,1e-08,1762.6,1762.5,12.1995062]
[1745522667746,1e-08,1762.6,1762.5,13.28096957]
[1745522667933,1e-08,1762.6,1762.5,13.3847183]
[1745522670430,1e-08,1762.6,1762.5,19.4247183]
[1745522671717,0.29559216,1763.1,1763.0,6.49154974]
[1745522671916,1.08706322,1763.5,1763.4,5.6708631]
[1745522672122,1.08706322,1763.5,1763.4,4.874]
[1745522672323,0.7691,1763.5,1763.4,4.874]
[1745522672833,0.7691,1763.5,1763.4,10.5448631]
[1745522673023,0.7691,1763.5,1763.4,4.874]
[1745522675115,0.7691,1763.5,1763.0,17.018]
[1745522675258,0.7691,1763.5,1763.2,4.874]
[1745522676056,0.31730015,1763.5,1763.2,4.874]
[1745522676362,0.7745,1763.4,1763.2,10.54533436]
[1745522676566,0.7745,1763.4,1763.2,4.874]
[1745522677967,0.7745,1763.4,1763.2,10.54547929]
[1745522678646,0.7745,1763.4,1763.2,4.874]
[1745522678861,0.7745,1763.4,1763.2,10.54540371]
[1745522679049,0.7745,1763.4,1763.2,4.874]
[1745522682086,0.8296,1763.3,1763.1,4.873]
[1745522682283,1.47965679,1763.3,1763.1,4.873]
[1745522682455,0.8296,1763.2,1763.0,21.891]
[1745522687362,1.12554096,1763.2,1763.0,21.891]
[1745522688486,1.12554096,1763.2,1763.0,4.873]
[1745522691488,1.12554096,1763.2,1763.0,10.54503881]
[1745522692479,1.42116353,1763.2,1763.0,10.54503881]
[1745522693247,1.42116353,1763.2,1763.0,4.873]
[1745522693897,1.73839534,1763.2,1763.0,4.873]
[1745522694495,0.90879534,1763.2,1763.1,5.67182803]
[1745522694676,0.59156353,1763.2,1763.0,10.54496695]
[1745522695126,0.90879534,1763.2,1763.1,5.67182803]
[1745522696007,0.59156353,1763.2,1763.1,5.67182803]
[1745522696309,0.31723181,1763.3,1763.2,5.67150635]
[1745522696476,0.31723181,1763.3,1763.2,6.75296972]
[1745522696881,0.29554603,1763.5,1763.3,5.67112213]
[1745522697081,0.29554603,1763.5,1763.4,4.874]
[1745522699009,0.61359823,1763.5,1763.4,4.874]
[1745522700065,0.29554603,1763.5,1763.4,4.874]
[1745522703699,0.29554603,1763.5,1763.4,13.49534812]
[1745522703874,0.29554603,1763.5,1763.4,13.43863916]
[1745522704500,0.29554603,1763.5,1763.4,12.35717579]
[1745522704700,0.29554603,1763.5,1763.2,12.09465767]
[1745522704878,0.29554603,1763.5,1763.4,4.872]
[1745522708096,0.29554603,1763.5,1763.4,10.5428631]
[1745522708496,0.29554603,1763.5,1763.4,10.59956598]